{"text_format":"1","workbook":"xlsx","n_sheets":1,"sheets":["Tabelle1"],"not_rendered":{"charts":0,"images":54,"macros":1,"external_links":0,"defined_names":3,"comments":0,"pivot_tables":0},"unopened":[],"bounds":{"document_bytes":16777216,"sheet_cells":100000,"rows_first":2000,"rows_last":500,"rows_between":2000,"halvings":0,"cell_chars":16384,"cell_head_chars":4096},"cells_cut":0,"cells_raw":0,"read":"whole","date_system":"1900"}

{"sheet":"Tabelle1","index":0,"n_rows":219,"n_cols":65,"rows_kept":219,"cut":false,"hidden":false,"merged":[[109,1,109,18],[119,1,120,3],[119,5,120,11],[122,1,123,3],[122,5,123,11],[110,13,114,18],[110,1,111,3],[110,5,111,11],[113,5,114,11],[113,1,114,3],[102,15,102,17],[25,15,25,17],[26,1,26,4],[27,5,27,7],[27,1,27,4],[43,15,43,17],[44,15,44,17],[42,5,42,7],[44,5,44,7],[28,1,28,4],[36,15,36,17],[32,15,32,17],[27,15,27,17],[27,11,27,14],[93,15,93,17],[85,15,85,17],[0,6,0,8],[23,15,23,17],[24,15,24,17],[3,15,3,18],[4,15,4,18],[5,15,5,18],[3,5,3,8],[4,5,4,8],[5,5,5,8],[6,5,6,8],[22,5,22,7],[5,11,5,14],[4,11,4,14],[3,11,3,14],[6,11,6,13],[22,11,22,14],[23,11,23,14],[24,11,24,14],[26,11,26,14],[23,5,23,7],[25,11,25,14],[22,1,22,4],[23,1,23,4],[24,1,24,4],[25,1,25,4],[25,5,25,7],[82,15,82,17],[84,15,84,17],[92,15,92,17],[83,15,83,17],[94,15,94,17],[34,5,34,7],[35,15,35,17],[65,15,65,17],[36,5,36,7],[73,11,73,14],[73,15,73,17],[67,5,67,7],[63,15,63,17],[45,15,45,17]]}
[null,null,null,null,null,null,"Sprachauswahl\n(select language)",null,null,null,null,null,null,null,null,null,null,null,null,null,1200,"deutsch",null,null,null,null,null,null,null,null,null,null,"Prozessablauf"]
[null,{"$f":"HLOOKUP($V$1,$AV$3:$AY$18,AU4)","v":"Prozessdatenblatt - Sinterformteil"},null,null,null,null,null,null,null,null,null,null,null,null,null,null,null,null,null,null,{"$f":"VLOOKUP(U1,AR4:AS12,2)","v":16},null,null,{"$f":"A1*1","v":0},null,null,null,null,null,null,59,null,"deutsch",null,null,null,null,null,null,null,null,null,null,null,null,null,null,"Kopfdaten",null,null,null,null,null,null,null,null,"Gesamtseiten",{"$f":"ROUNDUP((BG2*BH9+BH11+BH14)/BH20,0)","v":2},{"$f":"IF((BH9+BH11+BH14)/BH20>1,2,1)","v":2}]
[null,null,null,null,null,null,null,null,null,null,null,null,null,null,null,null,null,null,null,null,null,null,null,5,null,null,null,null,null,null,40,null,"english",null,null,null,1,"deutsch","english",null,null,null,null,"Auflösung","Zeilenhöhe","Pixel",1,"deutsch","english",null,"OptionButton","Bereich","Zeile"]
[null,{"$f":"HLOOKUP($V$1,$AV$3:$AY$18,AU5)","v":"Bauteil-Bezeichnung"},null,null,null,null,null,null,null,null,null,{"$f":"HLOOKUP($V$1,$AV$3:$AY$18,AU9)","v":"Datum"},null,null,null,null,null,null,null,null,null,null,null,null,0,0,null,0,0,null,{"$f":"MIN(AE2+AE3-SUM(AH9:AH16)*10+70-49,121-49)","v":72},1,{"$f":"HLOOKUP($V$1,$AV$21:$AY$36,AU23)","v":"bitte auswählen"},null,null,null,2,"Ja","Yes",null,0,0,null,600,16,null,2,"Prozessdatenblatt - Sinterformteil","Process data sheet - sintered metal structural parts",null,1,"y",27,null,null,null,null,null,null,null,null,"Baustein","Zeilen","Bildpunkte"]
[null,{"$f":"HLOOKUP($V$1,$AV$3:$AY$18,AU6)","v":"Zeichnungsnr. Brose"},null,null,null,null,null,null,null,null,null,{"$f":"HLOOKUP($V$1,$AV$3:$AY$18,AU10)","v":"Lieferant"},null,null,null,null,null,null,null,null,null,null,null,null,0,0,null,0,0,null,null,2,"Pressen",null,null,null,3,"Nein","No",null,0,0,null,720,16,null,3,"Bauteil-Bezeichnung","part-name",null,2,"z",27]
[null,{"$f":"HLOOKUP($V$1,$AV$3:$AY$18,AU7)","v":"Zeichnung-Index"},null,null,null,null,null,null,null,null,null,{"$f":"HLOOKUP($V$1,$AV$3:$AY$18,AU11)","v":"Zeichnungsnr. Lieferant"},null,null,null,null,null,null,null,null,null,null,null,null,0,0,null,0,0,"SZ",{"$f":"BF2","v":2},3,"Sintern standard",null,null,null,4,"-fach","-times",null,0,0,null,768,16,null,4,"Zeichnungsnr. Brose","drawing-no. Brose",null,3,"y",53]
[null,{"$f":"HLOOKUP($V$1,$AV$3:$AY$18,AU8)","v":"Werkstoff"},null,null,null,null,null,null,null,null,null,{"$f":"HLOOKUP($V$1,$AV$3:$AY$18,AU12)","v":"ext. Prozess geplant"},null,null,null,{"$f":"AB7*1+AC7*2","v":0},{"$f":"HLOOKUP($V$1,$AL$3:$AN$5,$AK$4)","v":"Ja"},{"$f":"HLOOKUP($V$1,$AL$3:$AN$5,$AK$5)","v":"Nein"},null,null,null,null,null,null,0,0,{"$f":"L7","v":"ext. Prozess geplant"},0,0,"p1",{"$f":"BH22","v":89},4,"Sintern - DH",null,null,null,5,"Bitte Angaben zum Bearbeiter für mögliche Rückfragen ergänzen.\nKeine Unterschrift nötig, wenn dieses Dokument über die Online-FS Anwendung im Extranet an Brose gesendet wird","For further enquirys, please fill in information about the issuing person.\nNo signature required if this document is sent to Brose via the Online-FS application in Extranet",null,0,0,null,900,16,null,5,"Zeichnung-Index","issue",null,4,"z",53,null,null,"Seite",1,null,"Zeile","Bildpkt"]
[null,null,null,null,null,null,null,null,null,null,null,null,null,null,null,null,null,null,null,null,null,null,null,null,0,0,null,0,0,"p2",{"$f":"BH37","v":109},5,"Sintern - HT",null,null,null,6,"bitte auswählen","please select",null,0,0,null,1024,16,null,6,"Werkstoff","material",null,5,"y",36,null,null,null,null,"Zeilenhöhe",1,{"$f":"U2","v":16}]
[null,null,null,null,null,null,null,null,null,null,null,null,null,null,null,null,null,null,null,null,null,null,null,null,0,0,null,0,0,null,110,6,{"$f":"HLOOKUP($V$1,$AV$21:$AY$36,AU29)","v":"Kalibrieren"},{"$f":"W41*1","v":0},40,49,7,"keine","not used",null,0,0,null,1050,16,21,7,"Datum","date",null,6,"z",36,null,null,null,null,"Kopf",9,{"$f":"BH8*BG9","v":144}]
[null,null,null,null,null,null,null,null,null,null,null,null,null,null,null,null,null,null,null,null,null,null,null,null,0,0,null,0,0,null,null,7,{"$f":"HLOOKUP($V$1,$AV$21:$AY$36,AU31)","v":"weitere Wärmebehandlung"},{"$f":"W51*1","v":0},50,"59",8,"mechanisch","mechanical",null,0,0,null,1080,15,null,8,"Lieferant","supplier",null,7,"ab",34,null,null,null,null,"Modulhöhe",10]
[null,{"$f":"HLOOKUP($V$1,$AV$21:$AY$37,AU22)","v":"Prozessablauf"},null,null,null,null,null,null,null,null,null,null,null,null,null,null,null,null,null,null,null,1,null,null,0,0,null,0,0,null,null,8,{"$f":"HLOOKUP($V$1,$AV$21:$AY$36,AU28)","v":"Entgraten"},{"$f":"W61*1","v":0},60,69,9,"hydraulisch","hydraulic",null,0,0,null,1200,16,null,9,"Zeichnungsnr. Lieferant","drawing-no. supplier",null,8,"ac",34,null,null,null,{"$f":"AE14","v":3},"Modulegesamt",{"$f":"BE11*BG10","v":30},{"$f":"BG11*BH8","v":480}]
[null,null,null,null,null,null,null,null,null,null,null,null,null,null,null,null,null,null,null,null,null,null,null,null,0,0,null,0,0,null,null,9,{"$f":"HLOOKUP($V$1,$AV$21:$AY$36,AU30)","v":"mech.Bearbeitung"},{"$f":"W71*1","v":0},70,"79",10,"elektrisch","electric",null,0,0,null,1500,15,null,10,"ext. Prozess geplant","planned ext. processes",null,9,"y",34,null,null,null,null,"Unterkante",null,{"$f":"BH11+BH9","v":624}]
[null,{"$f":"VLOOKUP(C13,$AF$4:$AG$20,2,FALSE)","v":"Pressen"},{"$f":"U13","v":2},null,null,null,null,null,null,null,null,{"$f":"VLOOKUP(M13,$AF$4:$AG$20,2,FALSE)","v":"bitte auswählen"},{"$f":"V13","v":1},null,null,null,null,null,null,null,2,1,null,null,0,0,null,0,0,"Kopf",{"$f":"AE16","v":1},10,{"$f":"HLOOKUP($V$1,$AV$21:$AY$36,AU32)","v":"Oberflächenbehandlung"},{"$f":"W81*1","v":0},80,"89",11,"Bandofen","mesh belt furnace",null,0,0,null,null,null,null,11,"Prozessablauf","process flow",null,10,"z",34,null,null,null,null,"breakeven",{"$f":"ROUNDDOWN(BH13/BH8,0)","v":33},{"$f":"BH19-BH14","v":534},null,{"$f":"IF(BH12>BH13,BI11,BI12)","v":0}]
[null,"Sintern standard",{"$f":"U14","v":3},null,null,null,null,null,null,null,null,"bitte auswählen",{"$f":"V14","v":1},null,null,null,null,null,null,null,3,1,null,null,0,0,null,0,0,"Module",{"$f":"SUM(V11,V21,V31,V41,V51,V61,V71,V81,V91,V101)","v":3},11,{"$f":"HLOOKUP($V$1,$AV$21:$AY$36,AU33)","v":"Imprägnieren"},{"$f":"W91*1","v":0},90,"99",12,"Hubbalkenofen","walking beam furnace",null,0,0,null,null,null,null,12,null,null,null,11,"ab",27,null,null,null,null,"Fuß",16,{"$f":"BH8*BG14","v":256},null,{"$f":"(BH13-BH9)","v":390}]
[null,"bitte auswählen",1,null,null,null,null,null,null,null,null,"bitte auswählen",1,null,null,null,null,null,null,null,1,1,null,null,0,0,null,0,0,"Zeilen",{"$f":"(AE14*10+16)","v":46},12,{"$f":"HLOOKUP($V$1,$AV$21:$AY$36,AU34)","v":"Verlesen"},null,null,null,13,"Kammer-Ofen","batch furnace",null,0,0,null,null,null,null,13,null,null,null,12,"ac",27,null,null,null,null,"Platz pro Modul",{"$f":"BG10","v":10},{"$f":"BH8*BG15","v":160}]
[null,"bitte auswählen",1,null,null,null,null,null,null,null,null,"bitte auswählen",1,null,null,null,null,null,null,null,1,1,null,null,0,0,null,0,0,null,{"$f":"ROUNDUP(AE15/55,0)","v":1},13,{"$f":"HLOOKUP($V$1,$AV$21:$AY$36,AU35)","v":"Verpacken"},{"$f":"W101*1","v":0},100,"109",14,"Induktor","inductor",null,0,0,null,null,null,null,14,null,null,null,13,"ab",54,null,null,null,null,"für Module bereiter Platz ohne Fuß",{"$f":"BH16/BH8","v":40.375},{"$f":"BH19-BH9","v":646}]
[null,"bitte auswählen",1,null,null,null,null,null,null,null,null,"bitte auswählen",1,null,null,null,null,null,null,null,1,1,null,null,0,0,null,0,0,null,{"$f":"AE13*9+AE14*10+16","v":55},14,{"$f":"HLOOKUP($V$1,$AV$21:$AY$36,AU36)","v":"n.N."},null,null,null,15,"manuell","manual",null,0,0,null,null,null,null,15,null,null,null,14,"ac",54,null,null,null,{"$f":"ROUNDDOWN(BH16/BH15,0)","v":4},"mögliche Module ohne Fuß",{"$f":"BG15*BE17","v":40},{"$f":"BE17*BH15+BH9","v":784}]
[null,null,null,null,null,null,null,null,null,null,null,null,null,null,null,null,null,null,null,null,null,null,null,null,0,0,null,0,0,null,null,15,null,null,null,null,16,"automatisch","automatic",null,0,0,null,null,null,null,16,null,null,null,15,"ab",35,null,null,null,{"$f":"ROUNDDOWN(BH13/BH15,0)","v":3},"mögliche Module mit Fuß",{"$f":"BG15*BE18","v":30},{"$f":"BE18*BH15+BH9","v":624}]
[null,null,null,null,null,null,null,null,null,null,null,null,null,null,null,null,null,null,null,null,null,null,null,null,0,0,null,0,0,{"$f":"3+SUM($AH$9)","v":3},49,16,null,null,null,null,17,"Gleitschleifen","vibratory grinding",null,0,0,null,null,null,null,null,null,null,null,16,"ac",35,null,null,null,"max","Zeilenumbruch",{"$f":"ROUNDDOWN(BH19/BH8,0)","v":49},790]
[null,null,null,null,null,null,null,null,null,null,null,null,null,null,null,null,null,null,null,null,null,null,null,null,0,0,null,0,0,{"$f":"3+SUM($AH$9:AH10)","v":3},59,17,null,null,null,null,18,"Grünlingsbürsten","green part brushing",null,0,0,null,null,null,null,null,"Prozessablauf",null,null,17,"y",64,null,null,null,null,"akt.",{"$f":"IF(BH13>BH12,\"kein\",\"Zeilenumbruch\")","v":"Zeilenumbruch"},{"$f":"BE17*BH15+BH9","v":784}]
[null,{"$f":"HLOOKUP($V$1,$AV$41:$AW$58,AU42)","v":"Pulverpressen"},null,null,null,null,null,null,null,null,null,null,null,null,null,null,null,null,null,null,null,1,null,null,0,0,null,0,0,{"$f":"3+SUM($AH$9:AH11)","v":3},69,null,null,null,null,null,19,"Bürsten","brushing",null,0,0,null,null,null,null,1,"deutsch","english",null,18,"z",64,null,null,null,null,"1.","Umbruch mögliche Zeile",{"$f":"BH20/BH8","v":49}]
[null,null,null,null,null,null,null,null,null,null,null,null,null,null,null,null,null,null,null,null,null,null,null,null,0,0,null,0,0,{"$f":"3+SUM($AH$9:AH12)","v":3},79,null,null,null,null,null,20,"Trommeln","tumbling",null,0,0,null,null,null,null,2,"Prozessablauf","process flow",null,19,"ab",53,null,null,null,null,"aktueller Umbruch in Zeile",null,{"$f":"IF(BF2>1,VLOOKUP(BE17,BL28:BM35,2)-BE17*BG10+BH21,\"\")","v":89}]
[null,{"$f":"HLOOKUP($V$1,$AV$41:$AW$58,AU43)","v":"proj. ROH-Teil Pressfläche"},null,null,null,null,null,null,"cm²",null,null,{"$f":"HLOOKUP($V$1,$AV$41:$AW$58,AU50)","v":"WZ-Ebenen (u/o)"},null,null,null,0,null,null,null,null,0,null,null,null,0,0,null,0,0,{"$f":"3+SUM($AH$9:AH13)","v":3},89,null,null,null,null,null,21,"Strahlen","blasting",null,0,0,null,null,null,null,3,"bitte auswählen","please select",null,20,"ac",53,null,null,"Seite",2]
[null,"Anzahl Nester",null,null,null,null,null,null,{"$f":"HLOOKUP($V$1,$AL$3:$AN$6,$AK$6)","v":"-fach"},null,null,"Hubzahl",null,null,null,null,null,null,"min-1",null,null,null,null,null,0,0,null,0,0,{"$f":"3+SUM($AH$9:AH14)","v":3},99,null,null,null,null,null,22,"sonstige","others",null,0,0,null,null,null,null,4,"Pressen","Pressing",null,21,"y",55,null,null,null,null,"Zeilenhöhe",1,{"$f":"BH8","v":16}]
[null,"Pressen-Typ",null,null,null,0,null,null,null,null,null,"Pressdichte",null,null,null,null,null,null,"g/cm³",null,0,null,null,null,0,0,null,0,0,{"$f":"3+SUM($AH$9:AH16)","v":3},109,null,null,null,null,null,23,"Trocken-Ofen","drying furnace",null,0,0,null,null,null,null,5,"Sintern standard","Sintering - standard process",null,22,"z",55,null,null,null,null,"Kopf",9,{"$f":"BH9","v":144}]
[null,"Pressen-Größe",null,null,null,null,null,null,"t",null,null,"Pressgewicht",null,null,null,null,null,null,"g",null,null,null,null,null,0,0,null,0,0,null,null,null,null,null,null,null,24,"Mais-Schrot","corn granules",null,0,0,null,null,null,null,6,"Sintern - DH","Sintering - sinter hardening",null,23,"ab",65,null,null,null,{"$f":"IF(BE11-BE17<=0,0,BE11-BE17)","v":0},"Restmodule",{"$f":"BE26*10","v":0},{"$f":"BG26*BH24","v":0}]
[null,"Warmpressen",null,null,null,{"$f":"Y27*1+Z27*2","v":0},{"$f":"HLOOKUP($V$1,$AL$3:$AN$5,$AK$4)","v":"Ja"},{"$f":"HLOOKUP($V$1,$AL$3:$AN$5,$AK$5)","v":"Nein"},null,null,null,"Grünlingsbearbeitung",null,null,null,{"$f":"AB27*1+AC27*2","v":0},{"$f":"HLOOKUP($V$1,$AL$3:$AN$5,$AK$4)","v":"Ja"},{"$f":"HLOOKUP($V$1,$AL$3:$AN$5,$AK$5)","v":"Nein"},null,null,null,{"$f":"IF(OR(P27=1,W71*1=1),1,0)","v":0},null,{"$f":"B27","v":"Warmpressen"},0,0,{"$f":"L27","v":"Grünlingsbearbeitung"},0,0,null,null,null,null,null,null,null,25,"Akzeptiert","accepted",null,0,0,null,null,null,null,7,"Sintern - HT","Sintering - high temperature",null,24,"ac",65,null,null,null,null,"Unterkante",null,{"$f":"BH26+BH25","v":144}]
[null,"Press-Losgröße ca.",null,null,null,null,null,null,null,null,null,"Art d. Grünlingsbearbeitung",null,null,null,null,null,null,null,null,null,null,null,null,0,0,null,0,0,null,null,null,null,null,null,null,26,"Bedingt akzeptiert","conditionally accepted",null,0,0,null,null,null,null,8,"Entgraten","Deburring",null,25,"ab",67,null,null,null,null,"breakeven",{"$f":"ROUNDDOWN(BH28/BH8,0)","v":39},{"$f":"BH34-BH29","v":624},null,1,1,{"$f":"SUM(BK28)*BK28","v":1},{"$f":"BJ28*$BG$10","v":10}]
[null,"Bearb.-aufmaße berücksichtigt",null,null,null,{"$f":"Y29*1+Z29*2","v":0},{"$f":"HLOOKUP($V$1,$AL$3:$AN$5,$AK$4)","v":"Ja"},{"$f":"HLOOKUP($V$1,$AL$3:$AN$5,$AK$5)","v":"Nein"},null,null,null,null,null,null,null,null,null,null,null,null,null,null,null,"Bearb.-aufmaße berücksichtigt",0,0,null,0,0,null,null,"Pressen-Typ",null,null,null,"WZ-Ebenen",27,"Abgelehnt","rejected",null,0,0,null,null,null,null,9,"Kalibrieren","Sizing",null,26,"ac",67,null,null,null,null,"Fuß",{"$f":"BG14","v":16},{"$f":"BH14","v":256},null,2,1,{"$f":"SUM($BK$28:BK29)*BK29","v":2},{"$f":"BJ29*$BG$10","v":20}]
[null,null,null,null,null,null,null,null,null,null,null,null,null,null,null,null,null,null,null,null,null,null,null,null,0,0,null,0,0,null,null,{"$f":"HLOOKUP($V$1,$AL$3:$AN$25,$AK$8)","v":"bitte auswählen"},null,null,null,{"$f":"HLOOKUP($V$1,$AL$3:$AN$25,$AK$8)","v":"bitte auswählen"},28,"Bereich für Auswertung durch Brose","Area for evaluation by Brose",null,0,0,null,null,null,null,10,"mech.Bearbeitung","Machining",null,27,"ab",63,null,null,null,null,"Platz pro Modul",{"$f":"BG15","v":10},{"$f":"BH24*BG30","v":160},null,3,1,{"$f":"SUM($BK$28:BK30)*BK30","v":3},30]
[null,{"$f":"HLOOKUP($V$1,$AV$61:$AW$78,AU62)","v":"Sintern"},null,null,null,null,null,null,null,null,null,null,null,null,null,null,null,null,null,null,null,1,null,null,0,0,null,0,0,null,null,{"$f":"HLOOKUP($V$1,$AL$3:$AN$26,$AK10)","v":"mechanisch"},null,null,null,"1/1",29,"Name (Bearbeiter Brose)","Name (evaluator Brose)",null,0,0,null,null,null,null,11,"weitere Wärmebehandlung","Add. heat treatment",null,28,"ac",63,null,null,null,null,"für Module bereiter Platz",null,{"$f":"BH34-BH25","v":736},null,4,{"$f":"AH9","v":0},{"$f":"SUM($BK$28:BK31)*BK31","v":0},40]
[null,null,null,null,null,null,null,null,null,null,null,null,null,null,null,null,null,null,null,null,null,null,null,null,0,0,null,0,0,null,null,{"$f":"HLOOKUP($V$1,$AL$3:$AN$26,$AK11)","v":"hydraulisch"},null,null,null,"2/1",30,"Funktion","Function",null,0,0,null,null,null,null,12,"Oberflächenbehandlung","Coating",null,29,"y",67,null,null,null,{"$f":"ROUNDDOWN(BH31/BH30,0)","v":4},"mögliche Module ohne Fuß",null,{"$f":"BE32*BH30+BH24","v":656},null,5,{"$f":"AH10","v":0},{"$f":"SUM($BK$28:BK32)*BK32","v":0},50]
[null,{"$f":"HLOOKUP($V$1,$AV$61:$AW$78,$AU63)","v":"Ofen-Typ"},null,null,null,0,3,null,null,null,null,{"$f":"HLOOKUP($V$1,$AV$61:$AW$78,$AU70)","v":"Sinter-Temp."},null,null,null,null,null,null,"°C",null,null,null,null,null,0,0,null,0,0,null,null,{"$f":"HLOOKUP($V$1,$AL$3:$AN$26,$AK12)","v":"elektrisch"},null,null,null,"2/2",31,"Name","Name",null,0,0,null,null,null,null,13,"Imprägnieren","Impregnation",null,30,"z",67,null,null,null,{"$f":"ROUNDDOWN(BH28/BH30,0)","v":3},"mögliche Module mit Fuß",null,{"$f":"BE33*BH30+BH24","v":496},null,6,0,{"$f":"SUM($BK$28:BK33)*BK33","v":0},60]
[null,{"$f":"HLOOKUP($V$1,$AV$61:$AW$78,$AU64)","v":"Warenträger"},null,null,null,{"$f":"Y34*1+Z34*2","v":0},{"$f":"HLOOKUP($V$1,$AL$3:$AN$5,$AK$4)","v":"Ja"},{"$f":"HLOOKUP($V$1,$AL$3:$AN$5,$AK$5)","v":"Nein"},null,null,null,{"$f":"HLOOKUP($V$1,$AV$61:$AW$78,$AU71)","v":"Schroffkühlung/Direkthärten"},null,null,null,{"$f":"AB34*1+AC34*2","v":0},{"$f":"HLOOKUP($V$1,$AL$3:$AN$5,$AK$4)","v":"Ja"},{"$f":"HLOOKUP($V$1,$AL$3:$AN$5,$AK$5)","v":"Nein"},null,null,null,null,null,{"$f":"B34","v":"Warenträger"},0,0,{"$f":"L34","v":"Schroffkühlung/Direkthärten"},0,0,null,null,null,null,null,null,"3/1",32,"Datum","Date",null,0,0,null,null,null,null,14,"Verlesen","100%-inspection",null,31,"y",65,null,null,null,"max","Zeilenumbruch",{"$f":"ROUNDDOWN(BH34/BH8,0)","v":55},880,null,7,0,{"$f":"SUM($BK$28:BK34)*BK34","v":0},70]
[null,{"$f":"HLOOKUP($V$1,$AV$61:$AW$78,$AU65)","v":"Anzahl Teilelagen"},null,null,null,null,null,null,{"$f":"HLOOKUP($V$1,$AL$3:$AN$6,$AK$6)","v":"-fach"},null,null,{"$f":"HLOOKUP($V$1,$AV$61:$AW$78,$AU72)","v":"Anlasszone Sinterofen"},null,null,null,{"$f":"AB35*1+AC35*2","v":0},{"$f":"HLOOKUP($V$1,$AL$3:$AN$5,$AK$4)","v":"Ja"},{"$f":"HLOOKUP($V$1,$AL$3:$AN$5,$AK$5)","v":"Nein"},null,null,null,null,null,null,0,0,{"$f":"L35","v":"Anlasszone Sinterofen"},0,0,null,null,null,null,null,null,"3/2",33,"Unterschrift","Signature",null,0,0,null,null,null,null,15,"Verpacken","Packing",null,32,"z",65,null,null,null,null,null,{"$f":"IF(BH28>BH27,\"kein\",\"Zeilenumbruch\")","v":"kein"},{"$f":"BE32*BH30+BH25","v":784},null,8,0,{"$f":"SUM($BK$28:BK35)*BK35","v":0},80]
[null,{"$f":"HLOOKUP($V$1,$AV$61:$AW$78,$AU66)","v":"Abdecklage"},null,null,null,{"$f":"Y36*1+Z36*2","v":0},{"$f":"HLOOKUP($V$1,$AL$3:$AN$5,$AK$4)","v":"Ja"},{"$f":"HLOOKUP($V$1,$AL$3:$AN$5,$AK$5)","v":"Nein"},null,null,null,{"$f":"HLOOKUP($V$1,$AV$61:$AW$78,$AU73)","v":"Microhärte"},null,null,null,null,null,null,null,null,null,null,null,{"$f":"B36","v":"Abdecklage"},0,0,null,0,0,null,null,null,null,null,null,"3/3",34,"Bewertung","Evaluation",null,0,0,null,null,null,null,16,"n.N.","n.n.",null,33,"y",46,null,null,null,null,"1.","Umbruch Zeile",{"$f":"BE23*BH21","v":98},null,9,0,{"$f":"SUM($BK$28:BK36)*BK36","v":0},90]
[null,{"$f":"HLOOKUP($V$1,$AV$61:$AW$78,$AU67)","v":"Sinter-Losgröße ca."},null,null,null,null,null,null,null,null,null,{"$f":"HLOOKUP($V$1,$AV$61:$AW$78,$AU74)","v":"Macrohärte"},null,null,null,null,null,null,null,null,null,null,null,null,0,0,null,0,0,null,null,null,null,null,null,"4/3",35,"Kommentar","Comment",null,0,0,null,null,null,null,17,null,null,null,34,"z",46,null,null,null,null,"aktueller Umbruch bei",null,{"$f":"VLOOKUP((BE17+BE32),BL28:BM37,2)+BG25","v":109},null,10,{"$f":"AH16","v":0},{"$f":"SUM($BK$28:BK37)*BK37","v":0},100]
[null,null,null,null,null,null,null,null,null,null,null,null,null,null,null,null,null,null,null,null,null,null,null,null,0,0,null,0,0,null,null,null,null,null,null,null,36,"KLT","small load carriers ",null,0,0,null,null,null,null,18,null,null,null,35,"y",74,null,null,null,null,null,null,{"$f":"IF(BF2>2,(BH22+VLOOKUP(BE11,BL28:BM37,2)-VLOOKUP(BE17,BL28:BM37,2)+BG25),\"\")","v":""}]
[null,null,null,null,null,null,null,null,null,null,null,null,null,null,null,null,null,null,null,null,null,null,null,null,0,0,null,0,0,null,null,"Härte",null,"Ofen-Typ",null,null,37,"Karton","cartonbox",null,0,0,null,null,null,null,19,null,null,null,36,"z",74]
[null,null,null,null,null,null,null,null,null,null,null,null,null,null,null,null,null,null,null,null,null,null,null,null,0,0,null,0,0,null,null,"HV0,1",null,{"$f":"HLOOKUP($V$1,$AL$3:$AN$25,$AK$8)","v":"bitte auswählen"},null,null,38,"Sonderbehälter","special box",null,0,0,null,null,null,null,null,"Pulverpressen",null,null,37,"y",75]
[null,{"$f":"HLOOKUP($V$1,$AV$81:$AW$99,$AU82)","v":"Kalibrieren"},null,null,null,null,null,null,null,null,null,null,null,null,null,null,null,null,null,null,null,{"$f":"W41*1","v":0},{"$f":"OR(EXACT(B41,$B$13:$L$17))","v":false},null,0,0,null,0,0,null,null,"HV0,2",null,{"$f":"HLOOKUP($V$1,$AL$3:$AN$25,$AK13)","v":"Bandofen"},null,null,39,null,null,null,0,0,null,null,null,null,1,"deutsch","english",null,38,"z",75]
[null,null,null,null,null,null,null,null,null,null,null,null,null,null,null,null,null,null,null,null,null,null,null,null,0,0,null,0,0,null,null,"HV5",null,{"$f":"HLOOKUP($V$1,$AL$3:$AN$25,$AK14)","v":"Hubbalkenofen"},null,null,40,null,null,null,0,0,null,null,null,null,2,"Pulverpressen","powder compacting",null,39,"y",56]
[null,{"$f":"HLOOKUP($V$1,$AV$81:$AW$98,$AU83)","v":"Pressen-Größe"},null,null,null,null,null,null,"t",null,null,{"$f":"HLOOKUP($V$1,$AV$81:$AW$98,$AU90)","v":"WZ-Ebenen (u/o)"},null,null,null,0,null,null,null,null,null,null,null,null,0,0,null,0,0,null,null,"HV10",null,{"$f":"HLOOKUP($V$1,$AL$3:$AN$25,$AK15)","v":"Kammer-Ofen"},null,null,41,null,null,null,0,0,null,null,null,null,3,"proj. ROH-Teil Pressfläche","projected raw-part pressing area",null,40,"z",56]
[null,{"$f":"HLOOKUP($V$1,$AV$81:$AW$98,$AU84)","v":"Zuführung"},null,null,null,0,null,null,null,null,null,{"$f":"HLOOKUP($V$1,$AV$81:$AW$98,$AU91)","v":"Hubzahl"},null,null,null,null,null,null,"min-1",null,null,null,null,null,0,0,null,0,0,null,null,"HRc",null,null,null,null,null,null,null,null,0,0,null,null,null,null,4,"Anzahl Nester","quantity of cavities",null,41,"ab",75]
[null,{"$f":"HLOOKUP($V$1,$AV$81:$AW$98,$AU85)","v":"Verwendetes Kalibrier-Öl"},null,null,null,null,null,null,null,null,null,{"$f":"HLOOKUP($V$1,$AV$81:$AW$98,$AU92)","v":"zu kalibrierende Merkmale"},null,null,null,null,null,null,null,null,null,null,null,null,0,0,null,0,0,null,null,"HB",null,null,null,null,null,null,null,null,0,0,null,null,null,null,5,"Pressen-Typ","powder-press type",null,42,"ac",75]
[null,{"$f":"HLOOKUP($V$1,$AV$81:$AW$98,$AU86)","v":"Wasch-Arbeitsgang"},null,null,null,{"$f":"Y46*1+Z46*2","v":0},{"$f":"HLOOKUP($V$1,$AL$3:$AN$5,$AK$4)","v":"Ja"},{"$f":"HLOOKUP($V$1,$AL$3:$AN$5,$AK$5)","v":"Nein"},null,null,null,null,null,null,null,null,null,null,null,null,null,null,null,{"$f":"B46","v":"Wasch-Arbeitsgang"},0,0,null,0,0,null,null,null,null,null,null,null,null,null,null,null,0,0,null,null,null,null,6,"Pressen-Größe","powder-press capacity",null,43,"y",93]
[null,null,null,null,null,null,null,null,null,null,null,null,null,null,null,null,null,null,null,null,null,null,null,null,0,0,null,0,0,null,null,"Zuführung",null,null,null,null,null,null,null,null,0,0,null,null,null,null,7,"Warmpressen","warm compacting",null,44,"z",93]
[null,null,null,null,null,null,null,null,null,null,null,null,null,null,null,null,null,null,null,null,null,null,null,null,0,0,null,0,0,null,null,{"$f":"HLOOKUP($V$1,$AL$3:$AN$11,$AK$8)","v":"bitte auswählen"},null,"Warenträger",null,null,null,null,null,null,0,0,null,null,null,null,8,"Press-Losgröße ca.","lot size",null,45,"y",94]
[null,null,null,null,null,null,null,null,null,null,null,null,null,null,null,null,null,null,null,null,null,null,null,null,0,0,null,0,0,null,null,{"$f":"HLOOKUP($V$1,$AL$3:$AN$20,$AK17)","v":"manuell"},null,"ohne - direkt a. Ofenband",null,null,null,null,null,null,0,0,null,null,null,null,9,"Bearb.-aufmaße berücksichtigt","machining allowance considered",null,46,"z",94]
[null,null,null,null,null,null,null,null,null,null,null,null,null,null,null,null,null,null,null,null,null,null,null,null,0,0,null,0,0,null,null,{"$f":"HLOOKUP($V$1,$AL$3:$AN$20,$AK18)","v":"automatisch"},null,"Sinterplatte",null,null,null,null,null,null,0,0,null,null,null,null,10,"WZ-Ebenen (u/o)","tool plates (bottom/top)",null,47,"ab",7]
[null,{"$f":"HLOOKUP($V$1,$AV$101:$AW$118,$AU102)","v":"weitere Wärmebehandlung"},null,null,null,null,null,null,null,null,null,null,null,null,null,null,null,null,null,null,null,{"$f":"W51*1","v":0},{"$f":"OR(EXACT(B51,$B$13:$L$17))","v":false},null,0,0,null,0,0,null,null,null,null,"Sinterkiste",null,null,null,null,null,null,0,0,null,null,null,null,11,"Hubzahl","revolutions per minute",null,48,"ac",7]
[null,null,null,null,null,null,null,null,null,null,null,null,null,null,null,null,null,null,null,null,null,null,null,null,0,0,null,0,0,null,null,null,null,"Korb",null,null,null,null,null,null,0,0,null,null,null,null,12,"Pressdichte","pressing density",null,49,"y",86]
[null,{"$f":"HLOOKUP($V$1,$AV$101:$AW$118,$AU103)","v":"Einsatzhärten"},null,null,null,{"$f":"Y53*1+Z53*2","v":0},{"$f":"HLOOKUP($V$1,$AL$3:$AN$5,$AK$4)","v":"Ja"},{"$f":"HLOOKUP($V$1,$AL$3:$AN$5,$AK$5)","v":"Nein"},null,null,null,{"$f":"HLOOKUP($V$1,$AV$101:$AW$118,$AU110)","v":"Induktivhärten"},null,null,null,{"$f":"AB53*1+AC53*2","v":0},{"$f":"HLOOKUP($V$1,$AL$3:$AN$5,$AK$4)","v":"Ja"},{"$f":"HLOOKUP($V$1,$AL$3:$AN$5,$AK$5)","v":"Nein"},null,null,null,null,null,{"$f":"B53","v":"Einsatzhärten"},0,0,{"$f":"L53","v":"Induktivhärten"},0,0,null,null,null,null,null,null,null,null,null,null,null,0,0,null,null,null,null,13,"Pressgewicht","pressing weight",null,50,"z",86]
[null,{"$f":"HLOOKUP($V$1,$AV$101:$AW$118,$AU104)","v":"Ofen-Typ"},null,null,null,null,null,null,null,null,null,{"$f":"HLOOKUP($V$1,$AV$101:$AW$118,$AU111)","v":"Anlassen/Glühen"},null,null,null,{"$f":"AB54*1+AC54*2","v":0},{"$f":"HLOOKUP($V$1,$AL$3:$AN$5,$AK$4)","v":"Ja"},{"$f":"HLOOKUP($V$1,$AL$3:$AN$5,$AK$5)","v":"Nein"},null,null,null,null,null,null,0,0,{"$f":"L54","v":"Anlassen/Glühen"},0,0,null,null,null,null,null,null,null,null,null,null,null,0,0,null,null,null,null,14,"Grünlingsbearbeitung","greenpart machining",null,51,"ab",54]
[null,{"$f":"HLOOKUP($V$1,$AV$101:$AW$118,$AU105)","v":"Schüttware"},null,null,null,{"$f":"Y55*1+Z55*2","v":0},{"$f":"HLOOKUP($V$1,$AL$3:$AN$5,$AK$4)","v":"Ja"},{"$f":"HLOOKUP($V$1,$AL$3:$AN$5,$AK$5)","v":"Nein"},null,null,null,{"$f":"HLOOKUP($V$1,$AV$101:$AW$118,$AU112)","v":"Ofen-Typ"},null,null,null,null,null,null,null,null,null,null,null,{"$f":"B55","v":"Schüttware"},0,0,null,0,0,null,null,null,null,null,null,null,null,null,null,null,0,0,null,null,null,null,15,"Art d. Grünlingsbearbeitung","type of machining",null,52,"ac",54]
[null,{"$f":"HLOOKUP($V$1,$AV$101:$AW$118,$AU106)","v":"2. Sintern mit DH"},null,null,null,{"$f":"Y56*1+Z56*2","v":0},{"$f":"HLOOKUP($V$1,$AL$3:$AN$5,$AK$4)","v":"Ja"},{"$f":"HLOOKUP($V$1,$AL$3:$AN$5,$AK$5)","v":"Nein"},null,null,null,null,null,null,null,null,null,null,null,null,null,null,null,{"$f":"B56","v":"2. Sintern mit DH"},0,0,null,0,0,null,null,"Härteofen",null,null,null,null,null,null,null,null,0,0,null,null,null,null,16,null,null,null,53,"y",83]
[null,null,null,null,null,null,null,null,null,null,null,null,null,null,null,null,null,null,null,null,null,null,null,null,0,0,null,0,0,null,null,{"$f":"HLOOKUP($V$1,$AL$3:$AN$11,$AK$8)","v":"bitte auswählen"},null,null,null,null,null,null,null,null,0,0,null,null,null,null,17,null,null,null,54,"z",83]
[null,null,null,null,null,null,null,null,null,null,null,null,null,null,null,null,null,null,null,null,null,null,null,null,0,0,null,0,0,null,null,{"$f":"HLOOKUP($V$1,$AL$3:$AN$14,$AK13)","v":"Bandofen"},null,null,null,null,null,null,null,"Pulverpressen",0,0,null,null,null,null,18,null,null,null,55,"y",85]
[null,null,null,null,null,null,null,null,null,null,null,null,null,null,null,null,null,null,null,null,null,null,null,null,0,0,null,0,0,null,null,{"$f":"HLOOKUP($V$1,$AL$3:$AN$25,$AK15)","v":"Kammer-Ofen"},null,null,null,null,null,null,null,"proj. ROH-Teil Pressfläche",0,0,null,null,null,null,19,null,null,null,56,"z",85]
[null,null,null,null,null,null,null,null,null,null,null,null,null,null,null,null,null,null,null,null,null,null,null,null,0,0,null,0,0,null,null,{"$f":"HLOOKUP($V$1,$AL$3:$AN$25,$AK16)","v":"Induktor"},null,null,null,null,null,null,null,"Anzahl Nester",0,0,null,null,null,null,null,"Sintern",null,null,57,"y",29]
[null,{"$f":"HLOOKUP($V$1,$AV$121:$AW$138,$AU122)","v":"Entgraten"},null,null,null,null,null,null,null,null,null,null,null,null,null,null,null,null,null,null,null,{"$f":"W61*1","v":0},{"$f":"OR(EXACT(B61,$B$13:$L$17))","v":false},null,0,0,null,0,0,null,null,null,null,null,null,null,null,null,null,"Pressen-Typ",0,0,null,null,null,null,1,"deutsch","english",null,58,"z",29]
[null,null,null,null,null,null,null,null,null,null,null,null,null,null,null,null,null,null,null,null,null,null,null,null,0,0,null,0,0,null,null,null,null,null,null,null,null,null,null,"Pressen-Größe",0,0,null,null,null,null,2,"Sintern","Sintering",null,59,"y",46]
[null,{"$f":"HLOOKUP($V$1,$AV$121:$AW$138,$AU123)","v":"Verfahren"},null,null,null,0,null,null,null,null,null,{"$f":"HLOOKUP($V$1,$AV$121:$AW$138,$AU130)","v":"Kühl-Schmiermittel"},null,null,null,{"$f":"AB63*1+AC63*2","v":0},{"$f":"HLOOKUP($V$1,$AL$3:$AN$5,$AK$4)","v":"Ja"},{"$f":"HLOOKUP($V$1,$AL$3:$AN$5,$AK$5)","v":"Nein"},null,null,null,null,{"$f":"IF(V61=1,AO63*1,0)","v":0},null,0,0,"Kühl-Schmiermittel",0,0,null,null,null,null,null,null,null,null,null,null,"Warmpressen",0,0,null,null,null,null,3,"Ofen-Typ","furnace type",null,60,"z",46]
[null,"Gleitschleifkörper",null,null,null,{"$f":"IF(V61=1,(Y64*1+Z64*2)*AO63,0)","v":0},{"$f":"HLOOKUP($V$1,$AL$3:$AN$5,$AK$4)","v":"Ja"},{"$f":"HLOOKUP($V$1,$AL$3:$AN$5,$AK$5)","v":"Nein"},null,null,null,{"$f":"HLOOKUP($V$1,$AV$121:$AW$138,$AU131)","v":"KSM-Bezeichnung"},null,null,null,null,null,null,null,null,null,null,null,"Gleitschleifkörper",0,0,null,0,0,null,null,null,null,null,null,null,null,null,null,"Press-Losgröße ca.",0,0,null,null,null,null,4,"Warenträger","carrier",null,61,"ab",104]
[null,"Reinigungs-Arbeitsgang",null,null,null,{"$f":"Y65*1+Z65*2","v":0},{"$f":"HLOOKUP($V$1,$AL$3:$AN$5,$AK$4)","v":"Ja"},{"$f":"HLOOKUP($V$1,$AL$3:$AN$5,$AK$5)","v":"Nein"},null,null,null,{"$f":"HLOOKUP($V$1,$AV$121:$AW$138,$AU132)","v":"Wasch-Medium"},null,null,null,{"$f":"AB65*1+AC65*2","v":0},{"$f":"HLOOKUP($V$1,$AL$3:$AN$5,$AK$4)","v":"Ja"},{"$f":"HLOOKUP($V$1,$AL$3:$AN$5,$AK$5)","v":"Nein"},null,null,null,null,null,"Reinigungs-Arbeitsgang",0,0,"Wasch-Medium",0,0,null,null,null,null,null,null,null,null,null,null,"WZ-Ebenen (u/o)",0,0,null,null,null,null,5,"Anzahl Teilelagen","no. of layers",null,62,"ac",104]
[null,"Trocknung",null,null,null,0,null,null,null,null,null,{"$f":"HLOOKUP($V$1,$AV$121:$AW$138,$AU133)","v":"Wasch-Medium Bezeichnung"},null,null,null,null,null,null,null,null,null,null,null,null,0,0,null,0,0,null,null,null,null,null,null,null,null,null,null,"Hubzahl",0,0,null,null,null,null,6,"Abdecklage","top cover layer",null,63,"y",95]
[null,"zus. Korrosionsschutz",null,null,null,{"$f":"Y67*1+Z67*2","v":0},{"$f":"HLOOKUP($V$1,$AL$3:$AN$5,$AK$4)","v":"Ja"},{"$f":"HLOOKUP($V$1,$AL$3:$AN$5,$AK$5)","v":"Nein"},null,null,null,{"$f":"HLOOKUP($V$1,$AV$121:$AW$138,$AU134)","v":"Verlesen auf Schleifkörper"},null,null,null,{"$f":"AB67*1+AC67*2","v":0},{"$f":"HLOOKUP($V$1,$AL$3:$AN$5,$AK$4)","v":"Ja"},{"$f":"HLOOKUP($V$1,$AL$3:$AN$5,$AK$5)","v":"Nein"},null,null,null,null,null,"zus. Korrosionsschutz",0,0,"Verlesen auf Schleifkörper",0,0,null,null,"Entgraten",null,"Trocknung",null,null,null,null,null,"Pressdichte",0,0,null,null,null,null,7,"Sinter-Losgröße ca.","sinter lot size",null,64,"z",95]
[null,"Korrosionsschutzmittel",null,null,null,null,null,null,null,null,null,null,null,null,null,null,null,null,null,null,null,null,null,null,0,0,null,0,0,null,null,{"$f":"HLOOKUP($V$1,$AL$3:$AN$25,$AK$8)","v":"bitte auswählen"},null,{"$f":"HLOOKUP($V$1,$AL$3:$AN$11,$AK8)","v":"bitte auswählen"},null,null,null,null,null,"Pressgewicht",0,0,null,null,null,null,8,null,null,null,65,"y",105]
[null,null,null,null,null,null,null,null,null,null,null,null,null,null,null,null,null,null,null,null,null,null,null,null,0,0,null,0,0,null,null,{"$f":"HLOOKUP($V$1,$AL$3:$AM$26,$AK19)","v":"Gleitschleifen"},null,"Trocken-Ofen",null,null,null,null,null,"Grünlingsbearbeitung",0,0,null,null,null,null,9,null,null,null,66,"z",105]
[null,null,null,null,null,null,null,null,null,null,null,null,null,null,null,null,null,null,null,null,null,null,null,null,0,0,null,0,0,null,null,{"$f":"HLOOKUP($V$1,$AL$3:$AM$26,$AK20)","v":"Grünlingsbürsten"},null,"Mais-Schrot",null,null,null,null,null,"Art d. Grünlingsbearbeitung",0,0,null,null,null,null,10,"Sinter-Temp.","sintering temperature",null,67,"ab",105]
[null,{"$f":"HLOOKUP($V$1,$AV$141:$AW$158,$AU142)","v":"mech.Bearbeitung"},null,null,null,null,null,null,null,null,null,null,null,null,null,null,null,null,null,null,null,{"$f":"W71*1","v":0},{"$f":"OR(EXACT(B71,$B$13:$N$17))","v":false},null,0,0,null,0,0,null,null,{"$f":"HLOOKUP($V$1,$AL$3:$AM$26,$AK21)","v":"Bürsten"},null,"sonstige",null,null,null,null,null,null,0,0,null,null,null,null,11,"Schroffkühlung/Direkthärten","rapid cooling / direct hardening",null,68,"ac",105]
[null,null,null,null,null,null,null,null,null,null,null,null,false,null,null,null,null,null,null,null,null,null,null,null,0,0,null,0,0,null,null,{"$f":"HLOOKUP($V$1,$AL$3:$AM$26,$AK22)","v":"Trommeln"},null,"keine",null,null,null,null,null,null,0,0,null,null,null,null,12,"Anlasszone Sinterofen","annealing zone",null,69,"y",104]
[null,{"$f":"HLOOKUP($V$1,$AV$141:$AW$158,$AU143)","v":"Drehen"},null,{"$f":"HLOOKUP($V$1,$AV$141:$AW$158,$AU144)","v":"Fräsen"},null,{"$f":"HLOOKUP($V$1,$AV$141:$AW$158,$AU145)","v":"Bohren"},null,{"$f":"HLOOKUP($V$1,$AV$141:$AW$158,$AU146)","v":"Honen"},null,{"$f":"HLOOKUP($V$1,$AV$141:$AW$158,$AU147)","v":"Schleifen"},null,null,null,{"$f":"HLOOKUP($V$1,$AV$141:$AW$158,$AU148)","v":"sonstige"},null,null,null,null,null,null,null,null,null,null,0,0,null,0,0,null,null,{"$f":"HLOOKUP($V$1,$AL$3:$AM$26,$AK24)","v":"sonstige"},null,null,null,null,null,null,null,null,0,0,null,null,null,null,13,"Microhärte","micro hardness",null,70,"z",104]
[null,{"$f":"HLOOKUP($V$1,$AV$141:$AW$158,$AU150)","v":"Kühl-Schmiermittel"},null,null,null,{"$f":"Y74*1+Z74*2","v":0},{"$f":"HLOOKUP($V$1,$AL$3:$AN$5,$AK$4)","v":"Ja"},{"$f":"HLOOKUP($V$1,$AL$3:$AN$5,$AK$5)","v":"Nein"},null,null,null,{"$f":"HLOOKUP($V$1,$AV$121:$AW$138,$AU150)","v":"Kühl-Schmiermittel"},null,null,null,null,null,null,null,null,null,null,null,"Kühl-Schmiermittel",0,0,null,0,0,null,null,{"$f":"HLOOKUP($V$1,$AL$3:$AM$26,$AK25)","v":"Trocken-Ofen"},null,null,null,null,null,null,null,null,0,0,null,null,null,null,14,"Macrohärte","macro hardness",null,71,"y",106]
[null,{"$f":"HLOOKUP($V$1,$AV$141:$AW$158,$AU152)","v":"eigene ROH-Teil Zg."},null,null,null,{"$f":"Y75*1+Z75*2","v":0},{"$f":"HLOOKUP($V$1,$AL$3:$AN$5,$AK$4)","v":"Ja"},{"$f":"HLOOKUP($V$1,$AL$3:$AN$5,$AK$5)","v":"Nein"},null,null,null,{"$f":"HLOOKUP($V$1,$AV$141:$AW$158,$AU153)","v":"eigene BEA-Zg."},null,null,null,{"$f":"AB75*1+AC75*2","v":0},{"$f":"HLOOKUP($V$1,$AL$3:$AN$5,$AK$4)","v":"Ja"},{"$f":"HLOOKUP($V$1,$AL$3:$AN$5,$AK$5)","v":"Nein"},null,null,null,null,null,"eigene ROH-Teil Zg.",0,0,"eigene Bearbeitungs-Zg.",0,0,null,null,null,null,null,null,null,null,null,null,null,0,0,null,null,null,null,15,null,null,null,72,"z",106]
[null,{"$f":"HLOOKUP($V$1,$AV$141:$AW$158,$AU154)","v":"Korrosionsschutzmittel"},null,null,null,{"$f":"Y76*1+Z76*2","v":0},{"$f":"HLOOKUP($V$1,$AL$3:$AN$5,$AK$4)","v":"Ja"},{"$f":"HLOOKUP($V$1,$AL$3:$AN$5,$AK$5)","v":"Nein"},null,null,null,null,null,null,null,null,null,null,null,null,null,null,null,"Rostschutzmittel",0,0,null,0,0,null,null,null,null,null,0,null,null,null,null,null,0,0,null,null,null,null,16,null,null,null,73,"y",94]
[null,null,null,null,null,null,null,null,null,null,null,null,null,null,null,null,null,null,null,null,null,null,null,null,0,0,null,0,0,null,null,null,null,"checkbox1",0,null,null,null,null,null,0,0,null,null,null,null,17,null,null,null,74,"z",94]
[null,null,null,null,null,null,null,null,null,null,null,null,null,null,null,null,null,null,null,null,null,null,null,null,0,0,null,0,0,null,null,null,null,"checkbox2",0,null,null,null,null,null,0,0,null,null,null,null,18,null,null,null,75,"y",76]
[null,null,null,null,null,null,null,null,null,null,null,null,null,null,null,null,null,null,null,null,null,null,null,null,0,0,null,0,0,null,null,null,null,"checkbox3",0,null,null,null,null,null,0,0,null,null,null,null,19,null,null,null,76,"z",76]
[null,null,null,null,null,null,null,null,null,null,null,null,null,null,null,null,null,null,null,null,null,null,null,null,0,0,null,0,0,null,null,null,null,"checkbox4",0,null,null,null,null,null,0,0,null,null,null,null,null,"Kalibrieren",null,null,77,"y",95]
[null,{"$f":"HLOOKUP($V$1,$AV$161:$AW$179,$AU162)","v":"Oberflächenbehandlung"},null,null,null,null,null,null,null,null,null,null,null,null,null,null,null,null,null,null,null,{"$f":"W81*1","v":0},{"$f":"OR(EXACT(B81,$B$13:$L$17))","v":false},null,0,0,null,0,0,null,null,null,null,"checkbox5",0,null,null,null,null,null,0,0,null,null,null,null,1,"deutsch","english",null,78,"z",95]
[null,null,null,null,null,null,null,null,null,null,null,null,null,null,null,null,null,null,null,null,null,null,null,null,0,0,null,0,0,null,null,null,null,"checkbox6",0,null,null,null,null,null,0,0,null,null,null,null,2,"Kalibrieren","Sizing"]
[null,{"$f":"HLOOKUP($V$1,$AV$161:$AW$179,$AU163)","v":"Wasserdampfbehandlung"},null,null,null,{"$f":"Y83*1+Z83*2","v":0},{"$f":"HLOOKUP($V$1,$AL$3:$AN$37,$AK$4)","v":"Ja"},{"$f":"HLOOKUP($V$1,$AL$3:$AN$5,$AK$5)","v":"Nein"},null,null,null,{"$f":"HLOOKUP($V$1,$AV$161:$AW$179,$AU170)","v":"Prozessdauer"},null,null,null,null,null,null,"h",null,null,null,null,"Wasserdampfbehandlung",0,0,null,0,0,null,null,null,null,null,null,null,null,null,null,null,0,0,null,null,null,null,3,"Pressen-Größe","sizing-press capacity"]
[null,{"$f":"HLOOKUP($V$1,$AV$161:$AW$179,$AU164)","v":"Ofen-Typ"},null,null,null,0,null,null,null,null,null,{"$f":"HLOOKUP($V$1,$AV$161:$AW$179,$AU171)","v":"Temperatur"},null,null,null,null,null,null,"°C",null,null,null,null,null,0,0,null,0,0,null,null,null,null,null,null,null,null,null,null,null,0,0,null,null,null,null,4,"Zuführung","feeding"]
[null,{"$f":"HLOOKUP($V$1,$AV$161:$AW$179,$AU165)","v":"Galvanik"},null,null,null,{"$f":"Y85*1+Z85*2","v":0},{"$f":"HLOOKUP($V$1,$AL$3:$AN$5,$AK$4)","v":"Ja"},{"$f":"HLOOKUP($V$1,$AL$3:$AN$5,$AK$5)","v":"Nein"},null,null,null,{"$f":"HLOOKUP($V$1,$AV$161:$AW$179,$AU172)","v":"Galvanik-Bezeichnung"},null,null,null,null,null,null,null,null,null,null,null,"Galvanik",0,0,null,0,0,null,null,null,null,null,null,null,null,null,null,null,0,0,null,null,null,null,5,"Verwendetes Kalibrier-Öl","used calibration oil"]
[null,{"$f":"HLOOKUP($V$1,$AV$161:$AW$179,$AU166)","v":"Lackierung"},null,null,null,{"$f":"Y86*1+Z86*2","v":0},{"$f":"HLOOKUP($V$1,$AL$3:$AN$5,$AK$4)","v":"Ja"},{"$f":"HLOOKUP($V$1,$AL$3:$AN$5,$AK$5)","v":"Nein"},null,null,null,{"$f":"HLOOKUP($V$1,$AV$161:$AW$179,$AU173)","v":"Lack-Bezeichnung"},null,null,null,null,null,null,null,null,null,null,null,"Lackierung",0,0,null,0,0,null,null,null,null,null,null,null,null,null,null,null,0,0,null,null,null,null,6,"Wasch-Arbeitsgang","washing/cleaning process"]
[null,null,null,null,null,null,null,null,null,null,null,null,null,null,null,null,null,null,null,null,null,null,null,null,0,0,null,0,0,null,null,null,null,null,null,null,null,null,null,null,0,0,null,null,null,null,7]
[null,null,null,null,null,null,null,null,null,null,null,null,null,null,null,null,null,null,null,null,null,null,null,null,0,0,null,0,0,null,null,null,null,null,null,null,null,null,null,null,0,0,null,null,null,null,8]
[null,null,null,null,null,null,null,null,null,null,null,null,null,null,null,null,null,null,null,null,null,null,null,null,0,0,null,0,0,null,null,null,null,null,null,null,null,null,null,null,0,0,null,null,null,null,9]
[null,null,null,null,null,null,null,null,null,null,null,null,null,null,null,null,null,null,null,null,null,null,null,null,0,0,null,0,0,null,null,null,null,null,null,null,null,null,null,null,0,0,null,null,null,null,10,"WZ-Ebenen (u/o)","tool plates (bottom/top)"]
[null,{"$f":"HLOOKUP($V$1,$AV$181:$AW$199,$AU182)","v":"Imprägnieren"},null,null,null,null,null,null,null,null,null,null,null,null,null,null,null,null,null,null,null,{"$f":"W91*1","v":0},{"$f":"OR(EXACT(B91,$B$13:$L$17))","v":false},null,0,0,null,0,0,null,null,null,null,null,null,null,null,null,null,null,0,0,null,null,null,null,11,"Hubzahl","revolutions per minute"]
[null,null,null,null,null,null,null,null,null,null,null,null,null,null,null,null,null,null,null,null,null,null,null,null,0,0,null,0,0,null,null,null,null,null,null,null,null,null,null,null,0,0,null,null,null,null,12,"zu kalibrierende Merkmale","dimensions to be sized"]
[null,{"$f":"HLOOKUP($V$1,$AV$181:$AW$199,$AU183)","v":"Vakuumimprägnieren"},null,null,null,{"$f":"Y93*1+Z93*2","v":0},{"$f":"HLOOKUP($V$1,$AL$3:$AN$37,$AK$4)","v":"Ja"},{"$f":"HLOOKUP($V$1,$AL$3:$AN$5,$AK$5)","v":"Nein"},null,null,null,{"$f":"HLOOKUP($V$1,$AV$181:$AW$199,$AU190)","v":"Imprägnier-Öl"},null,null,null,null,null,null,null,null,null,null,null,null,0,0,null,0,0,null,null,null,null,null,null,null,null,null,null,null,0,0,null,null,null,null,13]
[null,{"$f":"HLOOKUP($V$1,$AV$181:$AW$199,$AU184)","v":"Öl-Tauchen"},null,null,null,{"$f":"Y94*1+Z94*2","v":0},{"$f":"HLOOKUP($V$1,$AL$3:$AN$37,$AK$4)","v":"Ja"},{"$f":"HLOOKUP($V$1,$AL$3:$AN$5,$AK$5)","v":"Nein"},null,null,null,{"$f":"HLOOKUP($V$1,$AV$181:$AW$199,$AU191)","v":"Temperatur"},null,null,null,null,null,null,"°C",null,null,null,null,null,0,0,null,0,0,null,null,null,null,null,null,null,null,null,null,null,0,0,null,null,null,null,14]
[null,{"$f":"HLOOKUP($V$1,$AV$181:$AW$199,$AU185)","v":"Kunststoffimprägnieren"},null,null,null,{"$f":"Y95*1+Z95*2","v":0},{"$f":"HLOOKUP($V$1,$AL$3:$AN$37,$AK$4)","v":"Ja"},{"$f":"HLOOKUP($V$1,$AL$3:$AN$5,$AK$5)","v":"Nein"},null,null,null,{"$f":"HLOOKUP($V$1,$AV$181:$AW$199,$AU192)","v":"Produktname"},null,null,null,null,null,null,null,null,null,null,null,null,0,0,null,0,0,null,null,null,null,null,null,null,null,null,null,null,0,0,null,null,null,null,15]
[null,null,null,null,null,null,null,null,null,null,null,null,null,null,null,null,null,null,null,null,null,null,null,null,0,0,null,0,0,null,null,null,null,null,null,null,null,null,null,null,0,0,null,null,null,null,16]
[null,null,null,null,null,null,null,null,null,null,null,null,null,null,null,null,null,null,null,null,null,null,null,null,0,0,null,0,0,null,null,null,null,null,null,null,null,null,null,null,0,0,null,null,null,null,17]
[null,null,null,null,null,null,null,null,null,null,null,null,null,null,null,null,null,null,null,null,null,null,null,null,0,0,null,0,0,null,null,null,null,null,null,null,null,null,null,null,0,0,null,null,null,null,18]
[null,null,null,null,null,null,null,null,null,null,null,null,null,null,null,null,null,null,null,null,null,null,null,null,0,0,null,0,0,null,null,null,null,null,null,null,null,null,null,null,0,0,null,null,null,null,19]
[null,null,null,null,null,null,null,null,null,null,null,null,null,null,null,null,null,null,null,null,null,null,null,null,0,0,null,0,0,null,null,null,null,null,null,null,null,null,null,null,0,0,null,null,null,null,null,"Wärmebehandlung"]
[null,{"$f":"HLOOKUP($V$1,$AV$201:$AW$230,$AU202)","v":"Verpacken"},null,null,null,null,null,null,null,null,null,null,null,null,null,null,null,null,null,null,null,{"$f":"W101*1","v":0},{"$f":"OR(EXACT(B101,$B$13:$L$17))","v":false},null,0,0,null,0,0,null,null,null,null,null,null,null,null,null,null,null,0,0,null,null,null,null,1,"deutsch","english"]
[null,null,null,null,null,null,null,null,null,null,null,null,null,null,null,null,null,null,null,null,null,null,null,null,0,0,null,0,0,null,null,"Verpackungsbehälter",null,null,null,null,null,null,null,null,0,0,null,null,null,null,2,"weitere Wärmebehandlung","Add. heat treatment"]
[null,{"$f":"HLOOKUP($V$1,$AV$201:$AW$219,$AU203)","v":"Verpackungsbehälter"},null,null,null,0,null,null,null,null,null,{"$f":"HLOOKUP($V$1,$AV$201:$AW$219,$AU210)","v":"Füllmenge je Behälter"},null,null,null,null,null,null,null,null,null,null,null,null,0,0,null,0,0,null,null,{"$f":"HLOOKUP($V$1,$AL$3:$AN$30,$AK$8)","v":"bitte auswählen"},null,null,null,null,null,null,null,null,0,0,null,null,null,null,3,"Einsatzhärten","case hardening"]
[null,{"$f":"HLOOKUP($V$1,$AV$201:$AW$219,$AU204)","v":"Schüttware"},null,null,null,{"$f":"Y104*1+Z104*2","v":0},{"$f":"HLOOKUP($V$1,$AL$3:$AN$37,$AK$4)","v":"Ja"},{"$f":"HLOOKUP($V$1,$AL$3:$AN$5,$AK$5)","v":"Nein"},null,null,null,{"$f":"HLOOKUP($V$1,$AV$201:$AW$219,$AU211)","v":"Mehrweg Verpackung"},null,null,null,{"$f":"AB104*1+AC104*2","v":0},{"$f":"HLOOKUP($V$1,$AL$3:$AN$37,$AK$4)","v":"Ja"},{"$f":"HLOOKUP($V$1,$AL$3:$AN$5,$AK$5)","v":"Nein"},null,null,null,null,null,null,0,0,"Mehrweg Verpackung",0,0,null,null,{"$f":"HLOOKUP($V$1,$AL$3:$AM$40,$AK38)","v":"KLT"},null,null,null,null,null,null,null,null,0,0,null,null,null,null,4,"Ofen-Typ","furnace type"]
[null,{"$f":"HLOOKUP($V$1,$AV$201:$AW$219,$AU205)","v":"VCI/Korrosionsschutz"},null,null,null,{"$f":"Y105*1+Z105*2","v":0},{"$f":"HLOOKUP($V$1,$AL$3:$AN$37,$AK$4)","v":"Ja"},{"$f":"HLOOKUP($V$1,$AL$3:$AN$5,$AK$5)","v":"Nein"},null,null,null,{"$f":"HLOOKUP($V$1,$AV$201:$AW$219,$AU212)","v":"ISPM/HT Verpackung"},null,null,null,{"$f":"AB105*1+AC105*2","v":0},{"$f":"HLOOKUP($V$1,$AL$3:$AN$37,$AK$4)","v":"Ja"},{"$f":"HLOOKUP($V$1,$AL$3:$AN$5,$AK$5)","v":"Nein"},null,null,null,null,null,"VCI/Korrosionsschutz",0,0,"ISPM/HT Verpackung",0,0,null,null,{"$f":"HLOOKUP($V$1,$AL$3:$AM$40,$AK39)","v":"Karton"},null,null,null,null,null,null,null,null,0,0,null,null,null,null,5,"Schüttware","bulk material / unsorted"]
[null,{"$f":"HLOOKUP($V$1,$AV$201:$AW$219,$AU206)","v":"VDA Standard Etikett"},null,null,null,{"$f":"Y106*1+Z106*2","v":0},{"$f":"HLOOKUP($V$1,$AL$3:$AN$37,$AK$4)","v":"Ja"},{"$f":"HLOOKUP($V$1,$AL$3:$AN$5,$AK$5)","v":"Nein"},null,null,null,null,null,null,null,null,null,null,null,null,null,null,null,null,0,0,null,0,0,null,null,{"$f":"HLOOKUP($V$1,$AL$3:$AM$40,$AK40)","v":"Sonderbehälter"},null,null,null,null,null,null,null,null,0,0,null,null,null,null,6,"2. Sintern mit DH","2nd sintering incl. direct hardening"]
[null,null,null,null,null,null,null,null,null,null,null,null,null,null,null,null,null,null,null,null,null,null,null,null,0,0,null,0,0,null,null,null,null,null,null,null,null,null,null,null,0,0,null,null,null,null,7]
[null,null,null,null,null,null,null,null,null,null,null,null,null,null,null,null,null,null,null,null,null,null,null,null,null,null,null,null,null,null,null,null,null,null,null,null,null,null,null,null,0,0,null,null,null,null,8]
[null,null,null,null,null,null,null,null,null,null,null,null,null,null,null,null,null,null,null,null,null,null,null,null,null,null,null,null,null,null,null,null,null,null,null,null,null,null,null,null,0,0,null,null,null,null,9]
[null,{"$f":"HLOOKUP($V$1,$AL$3:$AN$10,$AK$7)","v":"Bitte Angaben zum Bearbeiter für mögliche Rückfragen ergänzen.\nKeine Unterschrift nötig, wenn dieses Dokument über die Online-FS Anwendung im Extranet an Brose gesendet wird"},null,null,null,null,null,null,null,null,null,null,null,null,null,null,null,null,null,null,null,null,null,null,null,null,null,null,null,null,null,null,null,null,null,null,null,null,null,null,0,0,null,null,null,null,10,"Induktivhärten","inductive hardening"]
[null,null,null,null,null,null,null,null,null,null,null,null,null,null,null,null,null,null,null,null,null,null,null,null,null,null,null,null,null,null,null,null,null,null,null,null,null,null,null,null,0,0,null,null,null,null,11,"Anlassen/Glühen","annealing"]
[null,null,null,null,null,null,null,null,null,null,null,null,null,null,null,null,null,null,null,null,null,null,null,null,null,null,null,null,null,null,null,null,null,null,null,null,null,null,null,null,0,0,null,null,null,null,12,"Ofen-Typ","furnace type"]
[null,{"$f":"HLOOKUP($V$1,$AL$3:$AN$37,$AK$32)","v":"Funktion"},null,null,null,{"$f":"HLOOKUP($V$1,$AL$3:$AN$37,$AK$33)","v":"Name"},null,null,null,null,null,null,null,null,null,null,null,null,null,null,null,null,null,null,null,null,null,null,null,null,null,null,null,null,null,null,null,null,null,null,0,0,null,null,null,null,13]
[null,null,null,null,null,null,null,null,null,null,null,null,null,null,null,null,null,null,null,null,null,null,null,null,null,null,null,null,null,null,null,null,null,null,null,null,null,null,null,null,0,0,null,null,null,null,14]
[null,null,null,null,null,null,null,null,null,null,null,null,null,null,null,null,null,null,null,null,null,null,null,null,null,null,null,null,null,null,null,null,null,null,null,null,null,null,null,null,0,0,null,null,null,null,15]
[null,{"$f":"HLOOKUP($V$1,$AL$3:$AN$37,$AK$34)","v":"Datum"},null,null,null,{"$f":"HLOOKUP($V$1,$AL$3:$AN$37,$AK$35)","v":"Unterschrift"},null,null,null,null,null,null,null,{"$f":"HLOOKUP($V$1,$AL$3:$AN$37,$AK$37)","v":"Kommentar"},null,null,null,null,null,null,null,null,null,null,null,null,null,null,null,null,null,null,null,null,null,null,null,null,null,null,0,0,null,null,null,null,16]
[null,{"$f":"HLOOKUP($V$1,$AL$3:$AN$31,$AK$30)","v":"Bereich für Auswertung durch Brose"},null,null,null,null,null,null,null,null,null,null,null,null,null,null,null,null,null,null,null,null,null,null,null,null,null,null,null,null,null,null,null,null,null,null,null,null,null,null,0,0,null,null,null,null,17]
[null,{"$f":"AO119","v":0},null,null,{"$f":"HLOOKUP($V$1,$AL$3:$AN$37,$AK$36)","v":"Bewertung"},null,null,null,null,null,null,null,null,null,null,null,null,null,null,null,null,null,null,null,null,null,null,null,null,null,null,"Bewertung",null,null,null,null,null,null,null,null,0,0,null,null,null,null,18]
[null,null,null,null,null,null,null,null,null,null,null,null,null,null,null,null,null,null,null,null,1,null,null,null,null,null,null,null,null,null,null,{"$f":"HLOOKUP($V$1,$AL$3:$AN$30,$AK$8)","v":"bitte auswählen"},null,null,null,null,null,null,null,null,0,0,null,null,null,null,19]
[null,null,null,null,null,null,null,null,null,null,null,null,null,null,null,null,null,null,null,null,null,null,null,null,null,null,null,null,null,null,null,{"$f":"HLOOKUP($V$1,$AL$3:$AM$31,$AK27)","v":"Akzeptiert"},null,null,null,null,null,null,null,null,0,0,null,null,null,null,null,"Entgraten"]
[null,null,null,null,null,null,null,null,null,null,null,null,null,null,null,null,null,null,null,null,null,null,null,null,null,null,null,null,null,null,null,{"$f":"HLOOKUP($V$1,$AL$3:$AM$31,$AK28)","v":"Bedingt akzeptiert"},null,null,null,null,null,null,null,null,0,0,null,null,null,null,1,"deutsch","english"]
[null,{"$f":"HLOOKUP($V$1,$AL$3:$AN$37,$AK$32)","v":"Funktion"},null,null,null,{"$f":"HLOOKUP($V$1,$AL$3:$AN$37,$AK$31)","v":"Name (Bearbeiter Brose)"},null,null,null,null,null,null,null,null,null,null,null,null,null,null,null,null,null,null,null,null,null,null,null,null,null,{"$f":"HLOOKUP($V$1,$AL$3:$AM$31,$AK29)","v":"Abgelehnt"},null,null,null,null,null,null,null,null,0,0,null,null,null,null,2,"Entgraten","Deburring"]
[null,null,null,null,null,null,null,null,null,null,null,null,null,null,null,null,null,null,null,null,null,null,null,null,null,null,null,null,null,null,null,null,null,null,null,null,null,null,null,null,0,0,null,null,null,null,3,"Verfahren","process"]
[null,null,null,null,null,null,null,null,null,null,null,null,null,null,null,null,null,null,null,null,null,null,null,null,null,null,null,null,null,null,null,null,null,null,null,null,null,null,null,null,0,0,null,null,null,null,4,"Gleitschleifkörper","vibratory grinding wheels"]
[null,{"$f":"HLOOKUP($V$1,$AL$3:$AN$37,$AK$34)","v":"Datum"},null,null,null,{"$f":"HLOOKUP($V$1,$AL$3:$AN$37,$AK$35)","v":"Unterschrift"},null,null,null,null,null,null,null,{"$f":"HLOOKUP($V$1,$AL$3:$AN$37,$AK$37)","v":"Kommentar"},null,null,null,null,null,null,null,null,null,null,null,null,null,null,null,null,null,null,null,null,null,null,null,null,null,null,null,null,null,null,null,null,5,"Reinigungs-Arbeitsgang","washing/cleaning process"]
[null,null,null,null,null,null,null,null,null,null,null,null,null,null,null,null,null,null,null,null,null,null,null,null,null,null,null,null,null,null,null,null,null,null,null,null,null,null,null,null,null,null,null,null,null,null,6,"Trocknung","drying"]
[null,null,null,null,null,null,null,null,null,null,null,null,null,null,null,null,null,null,null,null,null,null,null,null,null,null,null,null,null,null,null,null,null,null,null,null,null,null,null,null,null,null,null,null,null,null,7,"zus. Korrosionsschutz","add. corrosion protection"]
[null,null,null,null,null,null,null,null,null,null,null,null,null,null,null,null,null,null,null,null,null,null,null,null,null,null,null,null,null,null,null,null,null,null,null,null,null,null,null,null,null,null,null,null,null,null,8,"Korrosionsschutzmittel","corrosion inhibitor"]
[null,null,null,null,null,null,null,null,null,null,null,null,null,null,null,null,null,null,null,null,null,null,null,null,null,null,null,null,null,null,null,null,null,null,null,null,null,null,null,null,null,null,null,null,null,null,9]
[null,null,null,null,null,null,null,null,null,null,null,null,null,null,null,null,null,null,null,null,null,null,null,null,null,null,null,null,null,null,null,null,null,null,null,null,null,null,null,null,null,null,null,null,null,null,10,"Kühl-Schmiermittel","used cooling lubricant"]
[null,null,null,null,null,null,null,null,null,null,null,null,null,null,null,null,null,null,null,null,null,null,null,null,null,null,null,null,null,null,null,null,null,null,null,null,null,null,null,null,null,null,null,null,null,null,11,"KSM-Bezeichnung","washing medium name"]
[null,null,null,null,null,null,null,null,null,null,null,null,null,null,null,null,null,null,null,null,null,null,null,null,null,null,null,null,null,null,null,null,null,null,null,null,null,null,null,null,null,null,null,null,null,null,12,"Wasch-Medium","washing medium usage"]
[null,null,null,null,null,null,null,null,null,null,null,null,null,null,null,null,null,null,null,null,null,null,null,null,null,null,null,null,null,null,null,null,null,null,null,null,null,null,null,null,null,null,null,null,null,null,13,"Wasch-Medium Bezeichnung","washing medium name"]
[null,null,null,null,null,null,null,null,null,null,null,null,null,null,null,null,null,null,null,null,null,null,null,null,null,null,null,null,null,null,null,null,null,null,null,null,null,null,null,null,null,null,null,null,null,null,14,"Verlesen auf Schleifkörper","visual inspection 100%"]
[null,null,null,null,null,null,null,null,null,null,null,null,null,null,null,null,null,null,null,null,null,null,null,null,null,null,null,null,null,null,null,null,null,null,null,null,null,null,null,null,null,null,null,null,null,null,15]
[null,null,null,null,null,null,null,null,null,null,null,null,null,null,null,null,null,null,null,null,null,null,null,null,null,null,null,null,null,null,null,null,null,null,null,null,null,null,null,null,null,null,null,null,null,null,16]
[null,null,null,null,null,null,null,null,null,null,null,null,null,null,null,null,null,null,null,null,null,null,null,null,null,null,null,null,null,null,null,null,null,null,null,null,null,null,null,null,null,null,null,null,null,null,17]
[null,null,null,null,null,null,null,null,null,null,null,null,null,null,null,null,null,null,null,null,null,null,null,null,null,null,null,null,null,null,null,null,null,null,null,null,null,null,null,null,null,null,null,null,null,null,18]
[null,null,null,null,null,null,null,null,null,null,null,null,null,null,null,null,null,null,null,null,null,null,null,null,null,null,null,null,null,null,null,null,null,null,null,null,null,null,null,null,null,null,null,null,null,null,19]
[null,null,null,null,null,null,null,null,null,null,null,null,null,null,null,null,null,null,null,null,null,null,null,null,null,null,null,null,null,null,null,null,null,null,null,null,null,null,null,null,null,null,null,null,null,null,null,"mech.Bearbeitung"]
[null,null,null,null,null,null,null,null,null,null,null,null,null,null,null,null,null,null,null,null,null,null,null,null,null,null,null,null,null,null,null,null,null,null,null,null,null,null,null,null,null,null,null,null,null,null,1,"deutsch","english"]
[null,null,null,null,null,null,null,null,null,null,null,null,null,null,null,null,null,null,null,null,null,null,null,null,null,null,null,null,null,null,null,null,null,null,null,null,null,null,null,null,null,null,null,null,null,null,2,"mech.Bearbeitung","Machining"]
[null,null,null,null,null,null,null,null,null,null,null,null,null,null,null,null,null,null,null,null,null,null,null,null,null,null,null,null,null,null,null,null,null,null,null,null,null,null,null,null,null,null,null,null,null,null,3,"Drehen","Turning"]
[null,null,null,null,null,null,null,null,null,null,null,null,null,null,null,null,null,null,null,null,null,null,null,null,null,null,null,null,null,null,null,null,null,null,null,null,null,null,null,null,null,null,null,null,null,null,4,"Fräsen","Milling"]
[null,null,null,null,null,null,null,null,null,null,null,null,null,null,null,null,null,null,null,null,null,null,null,null,null,null,null,null,null,null,null,null,null,null,null,null,null,null,null,null,null,null,null,null,null,null,5,"Bohren","Drilling"]
[null,null,null,null,null,null,null,null,null,null,null,null,null,null,null,null,null,null,null,null,null,null,null,null,null,null,null,null,null,null,null,null,null,null,null,null,null,null,null,null,null,null,null,null,null,null,6,"Honen","Honing"]
[null,null,null,null,null,null,null,null,null,null,null,null,null,null,null,null,null,null,null,null,null,null,null,null,null,null,null,null,null,null,null,null,null,null,null,null,null,null,null,null,null,null,null,null,null,null,7,"Schleifen","Grinding"]
[null,null,null,null,null,null,null,null,null,null,null,null,null,null,null,null,null,null,null,null,null,null,null,null,null,null,null,null,null,null,null,null,null,null,null,null,null,null,null,null,null,null,null,null,null,null,8,"sonstige","others"]
[null,null,null,null,null,null,null,null,null,null,null,null,null,null,null,null,null,null,null,null,null,null,null,null,null,null,null,null,null,null,null,null,null,null,null,null,null,null,null,null,null,null,null,null,null,null,9]
[null,null,null,null,null,null,null,null,null,null,null,null,null,null,null,null,null,null,null,null,null,null,null,null,null,null,null,null,null,null,null,null,null,null,null,null,null,null,null,null,null,null,null,null,null,null,10,"Kühl-Schmiermittel","cooling lubricant"]
[null,null,null,null,null,null,null,null,null,null,null,null,null,null,null,null,null,null,null,null,null,null,null,null,null,null,null,null,null,null,null,null,null,null,null,null,null,null,null,null,null,null,null,null,null,null,11,"Kühl-Schmiermittel Bez.","used cooling lubricant"]
[null,null,null,null,null,null,null,null,null,null,null,null,null,null,null,null,null,null,null,null,null,null,null,null,null,null,null,null,null,null,null,null,null,null,null,null,null,null,null,null,null,null,null,null,null,null,12,"eigene ROH-Teil Zg.","RAW-part drawing"]
[null,null,null,null,null,null,null,null,null,null,null,null,null,null,null,null,null,null,null,null,null,null,null,null,null,null,null,null,null,null,null,null,null,null,null,null,null,null,null,null,null,null,null,null,null,null,13,"eigene BEA-Zg.","machining drawing"]
[null,null,null,null,null,null,null,null,null,null,null,null,null,null,null,null,null,null,null,null,null,null,null,null,null,null,null,null,null,null,null,null,null,null,null,null,null,null,null,null,null,null,null,null,null,null,14,"Korrosionsschutzmittel","corrosion inhibitor"]
[null,null,null,null,null,null,null,null,null,null,null,null,null,null,null,null,null,null,null,null,null,null,null,null,null,null,null,null,null,null,null,null,null,null,null,null,null,null,null,null,null,null,null,null,null,null,15]
[null,null,null,null,null,null,null,null,null,null,null,null,null,null,null,null,null,null,null,null,null,null,null,null,null,null,null,null,null,null,null,null,null,null,null,null,null,null,null,null,null,null,null,null,null,null,16]
[null,null,null,null,null,null,null,null,null,null,null,null,null,null,null,null,null,null,null,null,null,null,null,null,null,null,null,null,null,null,null,null,null,null,null,null,null,null,null,null,null,null,null,null,null,null,17]
[null,null,null,null,null,null,null,null,null,null,null,null,null,null,null,null,null,null,null,null,null,null,null,null,null,null,null,null,null,null,null,null,null,null,null,null,null,null,null,null,null,null,null,null,null,null,18]
[null,null,null,null,null,null,null,null,null,null,null,null,null,null,null,null,null,null,null,null,null,null,null,null,null,null,null,null,null,null,null,null,null,null,null,null,null,null,null,null,null,null,null,null,null,null,19]
[null,null,null,null,null,null,null,null,null,null,null,null,null,null,null,null,null,null,null,null,null,null,null,null,null,null,null,null,null,null,null,null,null,null,null,null,null,null,null,null,null,null,null,null,null,null,null,"Oberflächenbehandlung"]
[null,null,null,null,null,null,null,null,null,null,null,null,null,null,null,null,null,null,null,null,null,null,null,null,null,null,null,null,null,null,null,null,null,null,null,null,null,null,null,null,null,null,null,null,null,null,1,"deutsch","english"]
[null,null,null,null,null,null,null,null,null,null,null,null,null,null,null,null,null,null,null,null,null,null,null,null,null,null,null,null,null,null,null,null,null,null,null,null,null,null,null,null,null,null,null,null,null,null,2,"Oberflächenbehandlung","Coating"]
[null,null,null,null,null,null,null,null,null,null,null,null,null,null,null,null,null,null,null,null,null,null,null,null,null,null,null,null,null,null,null,null,null,null,null,null,null,null,null,null,null,null,null,null,null,null,3,"Wasserdampfbehandlung","Steam-Treatment"]
[null,null,null,null,null,null,null,null,null,null,null,null,null,null,null,null,null,null,null,null,null,null,null,null,null,null,null,null,null,null,null,null,null,null,null,null,null,null,null,null,null,null,null,null,null,null,4,"Ofen-Typ","Furnace-type"]
[null,null,null,null,null,null,null,null,null,null,null,null,null,null,null,null,null,null,null,null,null,null,null,null,null,null,null,null,null,null,null,null,null,null,null,null,null,null,null,null,null,null,null,null,null,null,5,"Galvanik","Galvanic"]
[null,null,null,null,null,null,null,null,null,null,null,null,null,null,null,null,null,null,null,null,null,null,null,null,null,null,null,null,null,null,null,null,null,null,null,null,null,null,null,null,null,null,null,null,null,null,6,"Lackierung","Painting"]
[null,null,null,null,null,null,null,null,null,null,null,null,null,null,null,null,null,null,null,null,null,null,null,null,null,null,null,null,null,null,null,null,null,null,null,null,null,null,null,null,null,null,null,null,null,null,7]
[null,null,null,null,null,null,null,null,null,null,null,null,null,null,null,null,null,null,null,null,null,null,null,null,null,null,null,null,null,null,null,null,null,null,null,null,null,null,null,null,null,null,null,null,null,null,8]
[null,null,null,null,null,null,null,null,null,null,null,null,null,null,null,null,null,null,null,null,null,null,null,null,null,null,null,null,null,null,null,null,null,null,null,null,null,null,null,null,null,null,null,null,null,null,9]
[null,null,null,null,null,null,null,null,null,null,null,null,null,null,null,null,null,null,null,null,null,null,null,null,null,null,null,null,null,null,null,null,null,null,null,null,null,null,null,null,null,null,null,null,null,null,10,"Prozessdauer","Process duration"]
[null,null,null,null,null,null,null,null,null,null,null,null,null,null,null,null,null,null,null,null,null,null,null,null,null,null,null,null,null,null,null,null,null,null,null,null,null,null,null,null,null,null,null,null,null,null,11,"Temperatur","Temperature"]
[null,null,null,null,null,null,null,null,null,null,null,null,null,null,null,null,null,null,null,null,null,null,null,null,null,null,null,null,null,null,null,null,null,null,null,null,null,null,null,null,null,null,null,null,null,null,12,"Galvanik-Bezeichnung","Galvanic designation"]
[null,null,null,null,null,null,null,null,null,null,null,null,null,null,null,null,null,null,null,null,null,null,null,null,null,null,null,null,null,null,null,null,null,null,null,null,null,null,null,null,null,null,null,null,null,null,13,"Lack-Bezeichnung","Painting designation"]
[null,null,null,null,null,null,null,null,null,null,null,null,null,null,null,null,null,null,null,null,null,null,null,null,null,null,null,null,null,null,null,null,null,null,null,null,null,null,null,null,null,null,null,null,null,null,14]
[null,null,null,null,null,null,null,null,null,null,null,null,null,null,null,null,null,null,null,null,null,null,null,null,null,null,null,null,null,null,null,null,null,null,null,null,null,null,null,null,null,null,null,null,null,null,15]
[null,null,null,null,null,null,null,null,null,null,null,null,null,null,null,null,null,null,null,null,null,null,null,null,null,null,null,null,null,null,null,null,null,null,null,null,null,null,null,null,null,null,null,null,null,null,16]
[null,null,null,null,null,null,null,null,null,null,null,null,null,null,null,null,null,null,null,null,null,null,null,null,null,null,null,null,null,null,null,null,null,null,null,null,null,null,null,null,null,null,null,null,null,null,17]
[null,null,null,null,null,null,null,null,null,null,null,null,null,null,null,null,null,null,null,null,null,null,null,null,null,null,null,null,null,null,null,null,null,null,null,null,null,null,null,null,null,null,null,null,null,null,18]
[null,null,null,null,null,null,null,null,null,null,null,null,null,null,null,null,null,null,null,null,null,null,null,null,null,null,null,null,null,null,null,null,null,null,null,null,null,null,null,null,null,null,null,null,null,null,19]
[null,null,null,null,null,null,null,null,null,null,null,null,null,null,null,null,null,null,null,null,null,null,null,null,null,null,null,null,null,null,null,null,null,null,null,null,null,null,null,null,null,null,null,null,null,null,null,"Imprägnieren"]
[null,null,null,null,null,null,null,null,null,null,null,null,null,null,null,null,null,null,null,null,null,null,null,null,null,null,null,null,null,null,null,null,null,null,null,null,null,null,null,null,null,null,null,null,null,null,1,"deutsch","english"]
[null,null,null,null,null,null,null,null,null,null,null,null,null,null,null,null,null,null,null,null,null,null,null,null,null,null,null,null,null,null,null,null,null,null,null,null,null,null,null,null,null,null,null,null,null,null,2,"Imprägnieren","Impregnation"]
[null,null,null,null,null,null,null,null,null,null,null,null,null,null,null,null,null,null,null,null,null,null,null,null,null,null,null,null,null,null,null,null,null,null,null,null,null,null,null,null,null,null,null,null,null,null,3,"Vakuumimprägnieren","Vacuum Impregnation"]
[null,null,null,null,null,null,null,null,null,null,null,null,null,null,null,null,null,null,null,null,null,null,null,null,null,null,null,null,null,null,null,null,null,null,null,null,null,null,null,null,null,null,null,null,null,null,4,"Öl-Tauchen","Oil Dipping"]
[null,null,null,null,null,null,null,null,null,null,null,null,null,null,null,null,null,null,null,null,null,null,null,null,null,null,null,null,null,null,null,null,null,null,null,null,null,null,null,null,null,null,null,null,null,null,5,"Kunststoffimprägnieren","plastic impregnation"]
[null,null,null,null,null,null,null,null,null,null,null,null,null,null,null,null,null,null,null,null,null,null,null,null,null,null,null,null,null,null,null,null,null,null,null,null,null,null,null,null,null,null,null,null,null,null,6]
[null,null,null,null,null,null,null,null,null,null,null,null,null,null,null,null,null,null,null,null,null,null,null,null,null,null,null,null,null,null,null,null,null,null,null,null,null,null,null,null,null,null,null,null,null,null,7]
[null,null,null,null,null,null,null,null,null,null,null,null,null,null,null,null,null,null,null,null,null,null,null,null,null,null,null,null,null,null,null,null,null,null,null,null,null,null,null,null,null,null,null,null,null,null,8]
[null,null,null,null,null,null,null,null,null,null,null,null,null,null,null,null,null,null,null,null,null,null,null,null,null,null,null,null,null,null,null,null,null,null,null,null,null,null,null,null,null,null,null,null,null,null,9]
[null,null,null,null,null,null,null,null,null,null,null,null,null,null,null,null,null,null,null,null,null,null,null,null,null,null,null,null,null,null,null,null,null,null,null,null,null,null,null,null,null,null,null,null,null,null,10,"Imprägnier-Öl","Impregnation oil"]
[null,null,null,null,null,null,null,null,null,null,null,null,null,null,null,null,null,null,null,null,null,null,null,null,null,null,null,null,null,null,null,null,null,null,null,null,null,null,null,null,null,null,null,null,null,null,11,"Temperatur","Process-Temperature"]
[null,null,null,null,null,null,null,null,null,null,null,null,null,null,null,null,null,null,null,null,null,null,null,null,null,null,null,null,null,null,null,null,null,null,null,null,null,null,null,null,null,null,null,null,null,null,12,"Produktname","Product-name"]
[null,null,null,null,null,null,null,null,null,null,null,null,null,null,null,null,null,null,null,null,null,null,null,null,null,null,null,null,null,null,null,null,null,null,null,null,null,null,null,null,null,null,null,null,null,null,13]
[null,null,null,null,null,null,null,null,null,null,null,null,null,null,null,null,null,null,null,null,null,null,null,null,null,null,null,null,null,null,null,null,null,null,null,null,null,null,null,null,null,null,null,null,null,null,14]
[null,null,null,null,null,null,null,null,null,null,null,null,null,null,null,null,null,null,null,null,null,null,null,null,null,null,null,null,null,null,null,null,null,null,null,null,null,null,null,null,null,null,null,null,null,null,15]
[null,null,null,null,null,null,null,null,null,null,null,null,null,null,null,null,null,null,null,null,null,null,null,null,null,null,null,null,null,null,null,null,null,null,null,null,null,null,null,null,null,null,null,null,null,null,16]
[null,null,null,null,null,null,null,null,null,null,null,null,null,null,null,null,null,null,null,null,null,null,null,null,null,null,null,null,null,null,null,null,null,null,null,null,null,null,null,null,null,null,null,null,null,null,17]
[null,null,null,null,null,null,null,null,null,null,null,null,null,null,null,null,null,null,null,null,null,null,null,null,null,null,null,null,null,null,null,null,null,null,null,null,null,null,null,null,null,null,null,null,null,null,18]
[null,null,null,null,null,null,null,null,null,null,null,null,null,null,null,null,null,null,null,null,null,null,null,null,null,null,null,null,null,null,null,null,null,null,null,null,null,null,null,null,null,null,null,null,null,null,19]
[null,null,null,null,null,null,null,null,null,null,null,null,null,null,null,null,null,null,null,null,null,null,null,null,null,null,null,null,null,null,null,null,null,null,null,null,null,null,null,null,null,null,null,null,null,null,null,"Verpacken"]
[null,null,null,null,null,null,null,null,null,null,null,null,null,null,null,null,null,null,null,null,null,null,null,null,null,null,null,null,null,null,null,null,null,null,null,null,null,null,null,null,null,null,null,null,null,null,1,"deutsch","english"]
[null,null,null,null,null,null,null,null,null,null,null,null,null,null,null,null,null,null,null,null,null,null,null,null,null,null,null,null,null,null,null,null,null,null,null,null,null,null,null,null,null,null,null,null,null,null,2,"Verpacken","Packing"]
[null,null,null,null,null,null,null,null,null,null,null,null,null,null,null,null,null,null,null,null,null,null,null,null,null,null,null,null,null,null,null,null,null,null,null,null,null,null,null,null,null,null,null,null,null,null,3,"Verpackungsbehälter","packing unit box"]
[null,null,null,null,null,null,null,null,null,null,null,null,null,null,null,null,null,null,null,null,null,null,null,null,null,null,null,null,null,null,null,null,null,null,null,null,null,null,null,null,null,null,null,null,null,null,4,"Schüttware","bulk material / unsorted"]
[null,null,null,null,null,null,null,null,null,null,null,null,null,null,null,null,null,null,null,null,null,null,null,null,null,null,null,null,null,null,null,null,null,null,null,null,null,null,null,null,null,null,null,null,null,null,5,"VCI/Korrosionsschutz","VCI/corrosion inhibitor"]
[null,null,null,null,null,null,null,null,null,null,null,null,null,null,null,null,null,null,null,null,null,null,null,null,null,null,null,null,null,null,null,null,null,null,null,null,null,null,null,null,null,null,null,null,null,null,6,"VDA Standard Etikett","VDA standard Label"]
[null,null,null,null,null,null,null,null,null,null,null,null,null,null,null,null,null,null,null,null,null,null,null,null,null,null,null,null,null,null,null,null,null,null,null,null,null,null,null,null,null,null,null,null,null,null,7]
[null,null,null,null,null,null,null,null,null,null,null,null,null,null,null,null,null,null,null,null,null,null,null,null,null,null,null,null,null,null,null,null,null,null,null,null,null,null,null,null,null,null,null,null,null,null,8]
[null,null,null,null,null,null,null,null,null,null,null,null,null,null,null,null,null,null,null,null,null,null,null,null,null,null,null,null,null,null,null,null,null,null,null,null,null,null,null,null,null,null,null,null,null,null,9]
[null,null,null,null,null,null,null,null,null,null,null,null,null,null,null,null,null,null,null,null,null,null,null,null,null,null,null,null,null,null,null,null,null,null,null,null,null,null,null,null,null,null,null,null,null,null,10,"Füllmenge je Behälter","quantity per unit"]
[null,null,null,null,null,null,null,null,null,null,null,null,null,null,null,null,null,null,null,null,null,null,null,null,null,null,null,null,null,null,null,null,null,null,null,null,null,null,null,null,null,null,null,null,null,null,11,"Mehrweg Verpackung","returnable packaging"]
[null,null,null,null,null,null,null,null,null,null,null,null,null,null,null,null,null,null,null,null,null,null,null,null,null,null,null,null,null,null,null,null,null,null,null,null,null,null,null,null,null,null,null,null,null,null,12,"ISPM/HT Verpackung","ISPM standard"]
[null,null,null,null,null,null,null,null,null,null,null,null,null,null,null,null,null,null,null,null,null,null,null,null,null,null,null,null,null,null,null,null,null,null,null,null,null,null,null,null,null,null,null,null,null,null,13]
[null,null,null,null,null,null,null,null,null,null,null,null,null,null,null,null,null,null,null,null,null,null,null,null,null,null,null,null,null,null,null,null,null,null,null,null,null,null,null,null,null,null,null,null,null,null,14]
[null,null,null,null,null,null,null,null,null,null,null,null,null,null,null,null,null,null,null,null,null,null,null,null,null,null,null,null,null,null,null,null,null,null,null,null,null,null,null,null,null,null,null,null,null,null,15]
[null,null,null,null,null,null,null,null,null,null,null,null,null,null,null,null,null,null,null,null,null,null,null,null,null,null,null,null,null,null,null,null,null,null,null,null,null,null,null,null,null,null,null,null,null,null,16]
[null,null,null,null,null,null,null,null,null,null,null,null,null,null,null,null,null,null,null,null,null,null,null,null,null,null,null,null,null,null,null,null,null,null,null,null,null,null,null,null,null,null,null,null,null,null,17]
[null,null,null,null,null,null,null,null,null,null,null,null,null,null,null,null,null,null,null,null,null,null,null,null,null,null,null,null,null,null,null,null,null,null,null,null,null,null,null,null,null,null,null,null,null,null,18]
[null,null,null,null,null,null,null,null,null,null,null,null,null,null,null,null,null,null,null,null,null,null,null,null,null,null,null,null,null,null,null,null,null,null,null,null,null,null,null,null,null,null,null,null,null,null,19]